[Event "*** Titled Tuesday 3|2 Blitz (Late)"]
[Site "Chess.com"]
[Date "2016.11.01"]
[Round "3"]
[White "Zlatan56"]
[Black "Aygehovit1992"]
[Result "1-0"]
[WhiteElo "2650"]
[BlackElo "2430"]
[TimeControl "180+2"]
[EndTime "17:40:42 PDT"]
[Termination "Zlatan56 won by resignation"]

1. Nf3 {[%clk 0:03:02]} 1... g6 {[%clk 0:02:58.8]} 2. e4 {[%clk 0:03:01.4]} 2...
Bg7 {[%clk 0:02:59.9]} 3. d4 {[%clk 0:03:02.9]} 3... d6 {[%clk 0:03:01.2]} 4.
Nc3 {[%clk 0:03:03.9]} 4... a6 {[%clk 0:03:02.5]} 5. Be3 {[%clk 0:03:05.3]} 5...
b5 {[%clk 0:03:01.2]} 6. Bd3 {[%clk 0:03:04.4]} 6... Bb7 {[%clk 0:03:01.8]} 7.
O-O {[%clk 0:03:01.5]} 7... Nf6 {[%clk 0:02:59.3]} 8. e5 {[%clk 0:02:54.7]} 8...
Ng4 {[%clk 0:02:54.1]} 9. e6 {[%clk 0:02:53.8]} 9... f5 {[%clk 0:02:34.2]} 10.
Ng5 {[%clk 0:02:47.6]} 10... O-O {[%clk 0:02:34.4]} 11. Bf4 {[%clk 0:02:21.7]}
11... Nc6 {[%clk 0:02:28.6]} 12. d5 {[%clk 0:02:14.4]} 12... Nce5 {[%clk
0:02:28.2]} 13. h3 {[%clk 0:02:05.1]} 13... Nxd3 {[%clk 0:02:19.3]} 14. Qxd3
{[%clk 0:02:05.2]} 14... Ne5 {[%clk 0:02:20.5]} 15. Bxe5 {[%clk 0:01:57.8]}
15... dxe5 {[%clk 0:02:22.4]} 16. Rad1 {[%clk 0:01:57.8]} 16... Qd6 {[%clk
0:02:03.6]} 17. Nf7 {[%clk 0:01:54.7]} 17... Rxf7 {[%clk 0:02:03.3]} 18. exf7+
{[%clk 0:01:56.6]} 18... Kxf7 {[%clk 0:02:05.2]} 19. Rfe1 {[%clk 0:01:55.7]}
19... Rd8 {[%clk 0:01:59.7]} 20. Qf3 {[%clk 0:01:54.9]} 20... Kg8 {[%clk
0:01:58]} 21. a3 {[%clk 0:01:55.5]} 21... e4 {[%clk 0:01:55.7]} 22. Qe3 {[%clk
0:01:56]} 22... Bxc3 {[%clk 0:01:50.5]} 23. Qxc3 {[%clk 0:01:50]} 23... Bxd5
{[%clk 0:01:50.8]} 24. Qa5 {[%clk 0:01:49.5]} 24... e6 {[%clk 0:01:42.9]} 25. b3
{[%clk 0:01:49.7]} 25... Qc6 {[%clk 0:01:08.8]} 26. c4 {[%clk 0:01:49.4]} 26...
bxc4 {[%clk 0:01:10]} 27. bxc4 {[%clk 0:01:50.8]} 27... Qxc4 {[%clk 0:01:11.7]}
28. Rc1 {[%clk 0:01:51.7]} 28... Qd4 {[%clk 0:01:08]} 29. Qxc7 {[%clk
0:01:39.2]} 29... Rf8 {[%clk 0:01:07.9]} 30. Qd6 {[%clk 0:01:28.3]} 30... f4
{[%clk 0:01:02.8]} 31. Red1 {[%clk 0:01:17.4]} 31... Qf6 {[%clk 0:01:01.9]} 32.
Rxd5 {[%clk 0:00:51]} 32... exd5 {[%clk 0:00:59.4]} 33. Qxd5+ {[%clk 0:00:52.9]}
33... Qf7 {[%clk 0:00:52.9]} 34. Qxe4 {[%clk 0:00:53.2]} 34... f3 {[%clk
0:00:54.2]} 35. g3 {[%clk 0:00:52.2]} 35... Qf5 {[%clk 0:00:49.9]} 36. Qc4+
{[%clk 0:00:52.5]} 36... Kg7 {[%clk 0:00:46.7]} 37. Kh2 {[%clk 0:00:53]} 37...
a5 {[%clk 0:00:43.6]} 38. Qd4+ {[%clk 0:00:52.8]} 38... Qf6 {[%clk 0:00:22.8]}
39. Qxf6+ {[%clk 0:00:52.2]} 39... Rxf6 {[%clk 0:00:21.4]} 40. g4 {[%clk
0:00:36.9]} 40... Rf4 {[%clk 0:00:09.7]} 41. Rc7+ {[%clk 0:00:36.7]} 41... Kf6
{[%clk 0:00:08.9]} 42. Kg3 {[%clk 0:00:33.5]} 42... Ra4 {[%clk 0:00:09.5]} 43.
Rc3 {[%clk 0:00:34.9]} 43... h5 {[%clk 0:00:10.7]} 44. Rxf3+ {[%clk 0:00:34]}
44... Kg7 {[%clk 0:00:09.9]} 45. Rc3 {[%clk 0:00:33.4]} 45... hxg4 {[%clk
0:00:10.5]} 46. hxg4 {[%clk 0:00:33.3]} 46... Kf6 {[%clk 0:00:10.8]} 47. f3
{[%clk 0:00:33.3]} 47... g5 {[%clk 0:00:11.4]} 48. Rb3 {[%clk 0:00:28.5]} 48...
Ke5 {[%clk 0:00:11]} 49. Re3+ {[%clk 0:00:25.4]} 49... Kf6 {[%clk 0:00:11.8]}
50. Kf2 {[%clk 0:00:25.5]} 50... Rc4 {[%clk 0:00:12.8]} 51. Ke2 {[%clk 0:00:25]}
51... Ra4 {[%clk 0:00:08.1]} 52. Kd2 {[%clk 0:00:25.2]} 52... Rf4 {[%clk
0:00:06.6]} 53. Kd3 {[%clk 0:00:22.4]} 53... Ra4 {[%clk 0:00:06.1]} 54. Kc2
{[%clk 0:00:23.2]} 54... Rc4+ {[%clk 0:00:07]} 55. Rc3 {[%clk 0:00:21.9]} 55...
Ra4 {[%clk 0:00:06.4]} 56. Kb3 {[%clk 0:00:20.1]} 56... Rd4 {[%clk 0:00:07.6]}
57. Rc6+ {[%clk 0:00:19.5]} 57... Ke5 {[%clk 0:00:07.7]} 58. Rc5+ {[%clk
0:00:20.4]} 58... Kf4 {[%clk 0:00:09.1]} 59. Rf5+ {[%clk 0:00:16.6]} 59... Ke3
{[%clk 0:00:08.4]} 60. Rxa5 {[%clk 0:00:16.7]} 60... Rd3+ {[%clk 0:00:08.6]} 61.
Kb4 {[%clk 0:00:14.9]} 61... Rd4+ {[%clk 0:00:09.1]} 62. Kc3 {[%clk 0:00:15.7]}
62... Rd3+ {[%clk 0:00:10.2]} 63. Kb2 {[%clk 0:00:16.7]} 63... Rd2+ {[%clk
0:00:11.5]} 64. Kc1 {[%clk 0:00:17.4]} 64... Ra2 {[%clk 0:00:12.5]} 65. Kb1
{[%clk 0:00:13.2]} 65... Rg2 {[%clk 0:00:13.2]} 66. Rxg5 {[%clk 0:00:13.6]}
66... Kxf3 {[%clk 0:00:14.8]} 67. a4 {[%clk 0:00:12.4]} 67... Kf4 {[%clk
0:00:15.8]} 68. Rg8 {[%clk 0:00:12.5]} 68... Ke3 {[%clk 0:00:12.3]} 69. a5
{[%clk 0:00:12.6]} 69... Kd3 {[%clk 0:00:08.9]} 70. a6 {[%clk 0:00:13.2]} 70...
Kc3 {[%clk 0:00:06.8]} 71. a7 {[%clk 0:00:12.8]} 71... Rg1+ {[%clk 0:00:05.8]}
72. Ka2 {[%clk 0:00:12.9]} 72... Rg2+ {[%clk 0:00:07]} 73. Ka3 {[%clk
0:00:13.7]} 1-0

[Event "*** Titled Tuesday 3|2 Blitz (Late)"]
[Site "Chess.com"]
[Date "2016.11.01"]
[Round "3"]
[White "pKiLz5Rn9b"]
[Black "Peroncio"]
[Result "1-0"]
[WhiteElo "2498"]
[BlackElo "2496"]
[TimeControl "180+2"]
[EndTime "17:40:56 PDT"]
[Termination "pKiLz5Rn9b won by checkmate"]

1. e4 {[%clk 0:03:01.9]} 1... c5 {[%clk 0:03:00.7]} 2. c3 {[%clk 0:03:02.9]}
2... d5 {[%clk 0:03:01.7]} 3. exd5 {[%clk 0:03:04.1]} 3... Qxd5 {[%clk
0:03:03.3]} 4. d4 {[%clk 0:03:05.4]} 4... Nf6 {[%clk 0:03:04.8]} 5. Nf3 {[%clk
0:03:06.7]} 5... Bg4 {[%clk 0:03:05.6]} 6. Be2 {[%clk 0:03:07.6]} 6... e6 {[%clk
0:03:06.7]} 7. h3 {[%clk 0:03:09.1]} 7... Bh5 {[%clk 0:03:07.2]} 8. Be3 {[%clk
0:03:10.7]} 8... cxd4 {[%clk 0:03:04.4]} 9. cxd4 {[%clk 0:03:12.1]} 9... Nc6
{[%clk 0:03:05.2]} 10. Nc3 {[%clk 0:03:13.6]} 10... Qd6 {[%clk 0:03:06.4]} 11.
O-O {[%clk 0:03:15.2]} 11... Be7 {[%clk 0:03:07.5]} 12. Qb3 {[%clk 0:03:16.8]}
12... O-O {[%clk 0:03:07.6]} 13. Rfd1 {[%clk 0:03:16]} 13... Rfd8 {[%clk
0:03:07.6]} 14. a3 {[%clk 0:03:15.7]} 14... a6 {[%clk 0:03:08.2]} 15. Rac1
{[%clk 0:03:16.5]} 15... Na5 {[%clk 0:03:00.4]} 16. Qa2 {[%clk 0:03:15.9]} 16...
Rac8 {[%clk 0:02:49.4]} 17. d5 {[%clk 0:03:00.3]} 17... exd5 {[%clk 0:02:43.3]}
18. g4 {[%clk 0:02:47.5]} 18... Bg6 {[%clk 0:02:39.8]} 19. g5 {[%clk 0:02:37.1]}
19... Ne4 {[%clk 0:02:13]} 20. Nxd5 {[%clk 0:02:38.1]} 20... Qe6 {[%clk
0:02:09.9]} 21. Rxc8 {[%clk 0:02:10.5]} 21... Rxc8 {[%clk 0:02:04.6]} 22. Bf1
{[%clk 0:02:10.7]} 22... Bf8 {[%clk 0:01:49]} 23. b4 {[%clk 0:01:54.4]} 23...
Nc6 {[%clk 0:01:49.5]} 24. Qb2 {[%clk 0:01:51.5]} 24... Rd8 {[%clk 0:01:40.2]}
25. Nf4 {[%clk 0:01:47.7]} 25... Qf5 {[%clk 0:01:23]} 26. Rxd8 {[%clk
0:01:41.2]} 26... Nxd8 {[%clk 0:01:24.9]} 27. Bd3 {[%clk 0:01:29.9]} 27... Ne6
{[%clk 0:01:04.1]} 28. Nxg6 {[%clk 0:01:29.1]} 28... Qxf3 {[%clk 0:00:53.8]} 29.
Qe5 {[%clk 0:00:41.1]} 29... Qd1+ {[%clk 0:00:32.3]} 30. Bf1 {[%clk 0:00:41.7]}
30... hxg6 {[%clk 0:00:31.9]} 31. Qxe4 {[%clk 0:00:42.4]} 31... Qd7 {[%clk
0:00:26.2]} 32. h4 {[%clk 0:00:41.8]} 32... Bd6 {[%clk 0:00:24.7]} 33. Bc4
{[%clk 0:00:41.2]} 33... Nf8 {[%clk 0:00:22.8]} 34. Bd5 {[%clk 0:00:38.3]} 34...
b5 {[%clk 0:00:19.7]} 35. Kg2 {[%clk 0:00:37.3]} 35... Qc7 {[%clk 0:00:18]} 36.
Bb3 {[%clk 0:00:35.8]} 36... a5 {[%clk 0:00:17.7]} 37. Bd2 {[%clk 0:00:20.5]}
37... axb4 {[%clk 0:00:17.6]} 38. axb4 {[%clk 0:00:22.1]} 38... Qd7 {[%clk
0:00:14.5]} 39. Bd5 {[%clk 0:00:21.4]} 39... Bc7 {[%clk 0:00:12.3]} 40. Be3
{[%clk 0:00:19.5]} 40... Qd6 {[%clk 0:00:12.3]} 41. Bc5 {[%clk 0:00:20.8]} 41...
Qh2+ {[%clk 0:00:12.6]} 42. Kf1 {[%clk 0:00:22.5]} 42... Qh3+ {[%clk 0:00:11.8]}
43. Ke2 {[%clk 0:00:24]} 43... Qc3 {[%clk 0:00:04.8]} 44. Qf3 {[%clk 0:00:18.5]}
44... Qe5+ {[%clk 0:00:05.1]} 45. Kf1 {[%clk 0:00:18.2]} 45... Ne6 {[%clk
0:00:06.1]} 46. Bb3 {[%clk 0:00:17.9]} 46... Qf4 {[%clk 0:00:04.9]} 47. Qxf4
{[%clk 0:00:16]} 47... Bxf4 {[%clk 0:00:05.1]} 48. Be7 {[%clk 0:00:10.1]} 48...
Bd2 {[%clk 0:00:04.7]} 49. Ke2 {[%clk 0:00:10.8]} 49... Bc3 {[%clk 0:00:04.6]}
50. Kd3 {[%clk 0:00:10.1]} 50... Be1 {[%clk 0:00:05.3]} 51. Ke3 {[%clk
0:00:11.6]} 51... Bc3 {[%clk 0:00:05.7]} 52. Bd5 {[%clk 0:00:09.6]} 52... Nd4
{[%clk 0:00:05.4]} 53. Be4 {[%clk 0:00:07.5]} 53... Ne6 {[%clk 0:00:04.1]} 54.
Bd6 {[%clk 0:00:07.2]} 54... Be1 {[%clk 0:00:03.5]} 55. Bd3 {[%clk 0:00:06.9]}
55... Nd8 {[%clk 0:00:03]} 56. Bxb5 {[%clk 0:00:07.4]} 56... Ne6 {[%clk
0:00:04.5]} 57. Bc4 {[%clk 0:00:08.3]} 57... Nd8 {[%clk 0:00:05]} 58. b5 {[%clk
0:00:09.5]} 58... Ba5 {[%clk 0:00:05.9]} 59. Bc5 {[%clk 0:00:08.3]} 59... Nb7
{[%clk 0:00:07.3]} 60. Bd4 {[%clk 0:00:09.3]} 60... Nd6 {[%clk 0:00:08.5]} 61.
Bd3 {[%clk 0:00:10.4]} 61... Nc8 {[%clk 0:00:10.2]} 62. Bc5 {[%clk 0:00:11.2]}
62... Nb6 {[%clk 0:00:09.4]} 63. Kd4 {[%clk 0:00:12.6]} 63... f5 {[%clk
0:00:10.2]} 64. Ke5 {[%clk 0:00:10.4]} 64... Kf7 {[%clk 0:00:10.7]} 65. Kd6
{[%clk 0:00:10.6]} 65... Ke8 {[%clk 0:00:09.7]} 66. Kc6 {[%clk 0:00:11.8]} 66...
Na4 {[%clk 0:00:08.8]} 67. Bd4 {[%clk 0:00:12.4]} 67... Kf7 {[%clk 0:00:09]} 68.
Bc4+ {[%clk 0:00:13.3]} 68... Kf8 {[%clk 0:00:08.3]} 69. b6 {[%clk 0:00:14.8]}
69... Nxb6 {[%clk 0:00:07.9]} 70. Bxb6 {[%clk 0:00:16]} 70... Be1 {[%clk
0:00:09.8]} 71. Bc5+ {[%clk 0:00:17.1]} 71... Ke8 {[%clk 0:00:10.3]} 72. Bd4
{[%clk 0:00:18.5]} 72... Kf8 {[%clk 0:00:10.4]} 73. Kd7 {[%clk 0:00:19.5]} 73...
Bb4 {[%clk 0:00:10.9]} 74. Be5 {[%clk 0:00:18.6]} 74... Be1 {[%clk 0:00:09.4]}
75. Bd6# {[%clk 0:00:19.5]} 1-0

[Event "*** Titled Tuesday 3|2 Blitz (Late)"]
[Site "Chess.com"]
[Date "2016.11.01"]
[Round "3"]
[White "SwiftyMcBishop"]
[Black "Wilsonpalencia"]
[Result "1-0"]
[WhiteElo "2100"]
[BlackElo "2135"]
[TimeControl "180+2"]
[EndTime "17:41:12 PDT"]
[Termination "SwiftyMcBishop won by resignation"]

1. e4 {[%clk 0:03:02]} 1... c5 {[%clk 0:03:00.5]} 2. Nf3 {[%clk 0:03:02.1]} 2...
d6 {[%clk 0:03:01.4]} 3. c3 {[%clk 0:03:00.1]} 3... Nf6 {[%clk 0:03:00.8]} 4. h3
{[%clk 0:03:00.1]} 4... Nc6 {[%clk 0:02:47.3]} 5. Bd3 {[%clk 0:03:00.5]} 5... e5
{[%clk 0:02:44.9]} 6. Bc2 {[%clk 0:03:00]} 6... Be7 {[%clk 0:02:43]} 7. O-O
{[%clk 0:03:00.4]} 7... O-O {[%clk 0:02:22.1]} 8. d4 {[%clk 0:02:59.5]} 8... Qc7
{[%clk 0:02:21.6]} 9. Be3 {[%clk 0:02:55.7]} 9... Re8 {[%clk 0:02:18.2]} 10. Re1
{[%clk 0:02:36.4]} 10... b5 {[%clk 0:02:06]} 11. Nbd2 {[%clk 0:02:35.9]} 11...
a5 {[%clk 0:02:04.1]} 12. Nf1 {[%clk 0:02:32.8]} 12... Bb7 {[%clk 0:01:55.4]}
13. Ng3 {[%clk 0:02:31.8]} 13... Bf8 {[%clk 0:01:55.2]} 14. Nf5 {[%clk
0:02:29.8]} 14... Rac8 {[%clk 0:01:49]} 15. Rc1 {[%clk 0:02:16.7]} 15... exd4
{[%clk 0:01:48.1]} 16. cxd4 {[%clk 0:02:15.4]} 16... Nxe4 {[%clk 0:01:48.4]} 17.
Bf4 {[%clk 0:01:29.5]} 17... Nb4 {[%clk 0:01:20.2]} 18. Bxe4 {[%clk 0:01:10]}
18... Bxe4 {[%clk 0:01:13]} 19. Rxc5 {[%clk 0:00:57]} 19... Bxf3 {[%clk
0:00:52.9]} 20. gxf3 {[%clk 0:00:55.4]} 20... Rxe1+ {[%clk 0:00:47.7]} 21. Qxe1
{[%clk 0:00:56.3]} 21... Qd7 {[%clk 0:00:39.1]} 22. Rxc8 {[%clk 0:00:55.3]}
22... Qxc8 {[%clk 0:00:39.8]} 23. Nxd6 {[%clk 0:00:19.3]} 23... Bxd6 {[%clk
0:00:19.8]} 24. Bxd6 {[%clk 0:00:19.5]} 24... Nd3 {[%clk 0:00:17.2]} 25. Qxa5
{[%clk 0:00:15.4]} 25... h6 {[%clk 0:00:17.7]} 26. Qxb5 {[%clk 0:00:13.9]} 26...
Qc1+ {[%clk 0:00:18.8]} 27. Kg2 {[%clk 0:00:13]} 27... Ne1+ {[%clk 0:00:18.2]}
28. Kg3 {[%clk 0:00:10.4]} 28... Qd1 {[%clk 0:00:16.6]} 29. Qd5 {[%clk
0:00:07.8]} 29... Qd3 {[%clk 0:00:15.3]} 30. Qe4 {[%clk 0:00:06.8]} 30... Qd2
{[%clk 0:00:13.5]} 31. Bf4 {[%clk 0:00:06.6]} 31... Qd1 {[%clk 0:00:13.5]} 32.
Qe8+ {[%clk 0:00:07.2]} 32... Kh7 {[%clk 0:00:14.1]} 33. Qe4+ {[%clk 0:00:08.8]}
33... g6 {[%clk 0:00:14.5]} 34. Qd5 {[%clk 0:00:06.9]} 34... Nd3 {[%clk
0:00:14.7]} 35. Qxf7+ {[%clk 0:00:07.2]} 35... Kh8 {[%clk 0:00:15]} 36. Qe8+
{[%clk 0:00:07.8]} 36... Kg7 {[%clk 0:00:15.4]} 37. Be5+ {[%clk 0:00:08.6]}
37... Nxe5 {[%clk 0:00:14.9]} 38. Qxe5+ {[%clk 0:00:10.5]} 38... Kf7 {[%clk
0:00:15.4]} 39. d5 {[%clk 0:00:11.1]} 39... Qg1+ {[%clk 0:00:16.1]} 40. Kf4
{[%clk 0:00:09.5]} 40... Qxf2 {[%clk 0:00:14.3]} 41. Qe6+ {[%clk 0:00:10.1]}
41... Kf8 {[%clk 0:00:15.7]} 42. d6 {[%clk 0:00:09.3]} 42... Qd2+ {[%clk
0:00:13.7]} 43. Ke5 {[%clk 0:00:09]} 43... Qxb2+ {[%clk 0:00:13.7]} 44. Ke4
{[%clk 0:00:07.6]} 44... Qc2+ {[%clk 0:00:14.5]} 45. Kf4 {[%clk 0:00:06.7]}
45... Qh2+ {[%clk 0:00:14.7]} 46. Ke3 {[%clk 0:00:06.9]} 46... Qg1+ {[%clk
0:00:12.9]} 47. Ke2 {[%clk 0:00:07.6]} 47... Qg2+ {[%clk 0:00:13.4]} 48. Ke1
{[%clk 0:00:07.7]} 48... Qg1+ {[%clk 0:00:13.4]} 49. Kd2 {[%clk 0:00:08]} 49...
Qd4+ {[%clk 0:00:14.2]} 50. Ke2 {[%clk 0:00:08.1]} 50... Qb2+ {[%clk 0:00:14.4]}
51. Kd3 {[%clk 0:00:08.4]} 51... Qa3+ {[%clk 0:00:14.6]} 52. Kc2 {[%clk
0:00:08.2]} 52... Qc5+ {[%clk 0:00:14.9]} 53. Kb3 {[%clk 0:00:09.6]} 53... Qb5+
{[%clk 0:00:15.8]} 54. Kc3 {[%clk 0:00:09.7]} 54... Qc5+ {[%clk 0:00:16.5]} 55.
Kb2 {[%clk 0:00:11]} 55... Qb4+ {[%clk 0:00:17.3]} 56. Kc2 {[%clk 0:00:08.2]}
56... Qc5+ {[%clk 0:00:18]} 57. Kd3 {[%clk 0:00:08.4]} 57... Qb5+ {[%clk
0:00:18.6]} 58. Qc4 {[%clk 0:00:08.2]} 58... Qf5+ {[%clk 0:00:17.2]} 59. Qe4
{[%clk 0:00:07.9]} 59... Qb5+ {[%clk 0:00:17.8]} 60. Ke3 {[%clk 0:00:07.1]}
60... Qc5+ {[%clk 0:00:18.6]} 61. Qd4 {[%clk 0:00:07.9]} 61... Qc1+ {[%clk
0:00:19.3]} 62. Ke4 {[%clk 0:00:08.4]} 62... Qe1+ {[%clk 0:00:18.8]} 63. Kd5
{[%clk 0:00:08.7]} 63... Qa5+ {[%clk 0:00:19.1]} 64. Qc5 {[%clk 0:00:10.1]}
64... Qxa2+ {[%clk 0:00:19.7]} 65. Kc6 {[%clk 0:00:09.1]} 65... Qa8+ {[%clk
0:00:19.1]} 66. Kc7 {[%clk 0:00:09.7]} 66... Kf7 {[%clk 0:00:09.8]} 67. d7
{[%clk 0:00:09.7]} 67... Qxf3 {[%clk 0:00:07.5]} 68. d8=Q {[%clk 0:00:09]} 68...
Qf4+ {[%clk 0:00:08.7]} 69. Qdd6 {[%clk 0:00:09.6]} 1-0

[Event "*** Titled Tuesday 3|2 Blitz (Late)"]
[Site "Chess.com"]
[Date "2016.11.01"]
[Round "3"]
[White "Rozum_Ivan"]
[Black "FairChess_on_YouTube"]
[Result "1/2-1/2"]
[WhiteElo "2592"]
[BlackElo "2755"]
[TimeControl "180+2"]
[EndTime "17:41:20 PDT"]
[Termination "Game drawn by agreement"]

1. Nf3 {[%clk 0:03:02]} 1... g6 {[%clk 0:02:54.7]} 2. e4 {[%clk 0:03:01.7]} 2...
Bg7 {[%clk 0:02:55.1]} 3. Nc3 {[%clk 0:03:01.3]} 3... d6 {[%clk 0:02:54.8]} 4.
d4 {[%clk 0:03:01.2]} 4... Nf6 {[%clk 0:02:55.8]} 5. Be2 {[%clk 0:02:59.6]} 5...
O-O {[%clk 0:02:56.7]} 6. O-O {[%clk 0:03:00.9]} 6... c6 {[%clk 0:02:58]} 7. a4
{[%clk 0:02:54.6]} 7... Qc7 {[%clk 0:02:56.8]} 8. Re1 {[%clk 0:02:54.9]} 8... e5
{[%clk 0:02:57.6]} 9. h3 {[%clk 0:02:51.4]} 9... Nbd7 {[%clk 0:02:57.9]} 10. Bf1
{[%clk 0:02:52.8]} 10... exd4 {[%clk 0:02:56.3]} 11. Nxd4 {[%clk 0:02:53.9]}
11... Re8 {[%clk 0:02:57.6]} 12. g3 {[%clk 0:02:51.4]} 12... Nc5 {[%clk
0:02:54.2]} 13. Bg2 {[%clk 0:02:52.1]} 13... a5 {[%clk 0:02:55.6]} 14. Bf4
{[%clk 0:02:49.1]} 14... Nfd7 {[%clk 0:02:54.8]} 15. Qd2 {[%clk 0:02:46.6]}
15... Ne5 {[%clk 0:02:54.8]} 16. b3 {[%clk 0:02:48.1]} 16... Ne6 {[%clk
0:02:50.7]} 17. Be3 {[%clk 0:02:39.6]} 17... Nc5 {[%clk 0:02:40.5]} 18. Rad1
{[%clk 0:02:36.5]} 18... Ned7 {[%clk 0:02:16.5]} 19. Bh6 {[%clk 0:02:23.2]}
19... Bh8 {[%clk 0:02:13.3]} 20. Nde2 {[%clk 0:02:10.6]} 20... Na6 {[%clk
0:01:54.7]} 21. Qxd6 {[%clk 0:02:03.2]} 21... Qxd6 {[%clk 0:01:56.6]} 22. Rxd6
{[%clk 0:02:04.5]} 22... Nb4 {[%clk 0:01:57.4]} 23. Red1 {[%clk 0:02:02.5]}
23... Nc5 {[%clk 0:01:51.1]} 24. Rd8 {[%clk 0:01:40.1]} 24... Be6 {[%clk
0:01:49.2]} 25. Rxa8 {[%clk 0:01:40.8]} 25... Rxa8 {[%clk 0:01:49.6]} 26. Rd2
{[%clk 0:01:40.5]} 26... Bf6 {[%clk 0:01:28.8]} 27. Be3 {[%clk 0:01:37.3]} 27...
b6 {[%clk 0:01:28]} 28. f4 {[%clk 0:01:31.1]} 28... Rd8 {[%clk 0:01:28.4]} 29.
Rxd8+ {[%clk 0:01:26.9]} 29... Bxd8 {[%clk 0:01:30.3]} 30. Nd4 {[%clk
0:01:28.2]} 30... Bd7 {[%clk 0:01:31.5]} 31. e5 {[%clk 0:01:26.4]} 31... Ne6
{[%clk 0:01:30.7]} 32. Nxe6 {[%clk 0:00:42.9]} 32... Bxe6 {[%clk 0:01:32.6]} 33.
Be4 {[%clk 0:00:42.5]} 33... Bxh3 {[%clk 0:01:32.3]} 34. Ne2 {[%clk 0:00:40.4]}
34... Bd7 {[%clk 0:01:16.9]} 35. Kf2 {[%clk 0:00:37.4]} 35... b5 {[%clk
0:01:13.7]} 36. Nc3 {[%clk 0:00:32.5]} 36... f5 {[%clk 0:01:10.7]} 37. exf6
{[%clk 0:00:28.7]} 37... Bxf6 {[%clk 0:01:11.7]} 38. Ne2 {[%clk 0:00:30.4]}
38... bxa4 {[%clk 0:01:10.2]} 39. bxa4 {[%clk 0:00:32.3]} 39... Nd5 {[%clk
0:01:00]} 40. Bd2 {[%clk 0:00:27.5]} 40... Bd8 {[%clk 0:01:01]} 41. Nd4 {[%clk
0:00:26.3]} 41... Bb6 {[%clk 0:00:58.2]} 42. c3 {[%clk 0:00:20]} 42... Nf6
{[%clk 0:00:56.6]} 43. Bf3 {[%clk 0:00:19]} 43... c5 {[%clk 0:00:47.7]} 44. Nc6
{[%clk 0:00:19]} 44... h5 {[%clk 0:00:41]} 45. c4 {[%clk 0:00:19.1]} 45... Kg7
{[%clk 0:00:29.7]} 46. Ke2 {[%clk 0:00:15.2]} 46... Be6 {[%clk 0:00:26.8]} 47.
Kd3 {[%clk 0:00:15.3]} 47... Bf5+ {[%clk 0:00:27.3]} 48. Ke2 {[%clk 0:00:16.6]}
48... Bc2 {[%clk 0:00:18.1]} 49. Bxa5 {[%clk 0:00:14.2]} 49... Bxa5 {[%clk
0:00:18.9]} 50. Nxa5 {[%clk 0:00:16.1]} 50... Bxa4 {[%clk 0:00:20.3]} 51. Nb7
{[%clk 0:00:17.4]} 51... Nd7 {[%clk 0:00:20.1]} 52. Nd6 {[%clk 0:00:18.1]} 52...
Kf6 {[%clk 0:00:19.6]} 53. Ke3 {[%clk 0:00:18.6]} 53... Ke7 {[%clk 0:00:19.3]}
54. Nb7 {[%clk 0:00:18.6]} 54... Bb3 {[%clk 0:00:19]} 55. Kd3 {[%clk 0:00:19.5]}
55... Ba2 {[%clk 0:00:17.9]} 56. Be4 {[%clk 0:00:19.9]} 56... g5 {[%clk
0:00:17.8]} 57. fxg5 {[%clk 0:00:14.7]} 57... Ne5+ {[%clk 0:00:19]} 58. Kc3
{[%clk 0:00:15.1]} 58... Bxc4 {[%clk 0:00:19.8]} 59. Nxc5 {[%clk 0:00:16.3]}
59... Bf1 {[%clk 0:00:19.3]} 60. Kd4 {[%clk 0:00:17.1]} 60... Nf7 {[%clk
0:00:19.9]} 61. g6 {[%clk 0:00:17.8]} 61... Nh6 {[%clk 0:00:17.1]} 62. Ke5
{[%clk 0:00:18.1]} 62... Bh3 {[%clk 0:00:17.6]} 63. Bd3 {[%clk 0:00:16.7]} 63...
Ng4+ {[%clk 0:00:15.6]} 64. Kf4 {[%clk 0:00:16.2]} 64... Kf6 {[%clk 0:00:15.1]}
65. Ne4+ {[%clk 0:00:17.3]} 65... Kg7 {[%clk 0:00:15]} 66. Kg5 {[%clk
0:00:18.1]} 66... Ne5 {[%clk 0:00:14.3]} 67. Nf2 {[%clk 0:00:15.9]} 67... Bg4
{[%clk 0:00:11.2]} 68. Be4 {[%clk 0:00:14.5]} 68... Bf3 {[%clk 0:00:10.9]} 69.
Bf5 {[%clk 0:00:10]} 69... Be2 {[%clk 0:00:11.7]} 70. Nh3 {[%clk 0:00:09.4]}
70... Nf3+ {[%clk 0:00:11.2]} 71. Kf4 {[%clk 0:00:07.9]} 71... h4 {[%clk
0:00:11.2]} 72. g4 {[%clk 0:00:06.3]} 72... Bf1 {[%clk 0:00:10.5]} 73. Nf2
{[%clk 0:00:05.6]} 73... Nd4 {[%clk 0:00:08.9]} 74. Be4 {[%clk 0:00:04.9]} 74...
h3 {[%clk 0:00:09.2]} 75. Kg3 {[%clk 0:00:05.4]} 75... Ne2+ {[%clk 0:00:10.2]}
76. Kh2 {[%clk 0:00:05.6]} 76... Nf4 {[%clk 0:00:11.2]} 77. Kg3 {[%clk 0:00:06]}
77... Ne2+ {[%clk 0:00:11.6]} 78. Kh2 {[%clk 0:00:07.2]} 78... Nf4 {[%clk
0:00:12.8]} 79. Kg3 {[%clk 0:00:08.2]} 79... Nxg6 {[%clk 0:00:13.2]} 80. Bxg6
{[%clk 0:00:08.8]} 80... Kxg6 {[%clk 0:00:14.5]} 81. Nxh3 {[%clk 0:00:10.4]}
81... Bxh3 {[%clk 0:00:15.4]} 82. Kxh3 {[%clk 0:00:12.3]} 82... Kg5 {[%clk
0:00:16.8]} 83. Kg3 {[%clk 0:00:12.5]} 1/2-1/2

[Event "*** Titled Tuesday 3|2 Blitz (Late)"]
[Site "Chess.com"]
[Date "2016.11.01"]
[Round "4"]
[White "popov_m"]
[Black "joppie2"]
[Result "1-0"]
[WhiteElo "2292"]
[BlackElo "2514"]
[TimeControl "180+2"]
[EndTime "17:49:17 PDT"]
[Termination "popov_m won by resignation"]

1. c4 {[%clk 0:03:01.9]} 1... e5 {[%clk 0:03:01]} 2. g3 {[%clk 0:03:00.6]} 2...
d6 {[%clk 0:03:01.9]} 3. Bg2 {[%clk 0:03:01]} 3... g6 {[%clk 0:03:03.5]} 4. Nc3
{[%clk 0:03:02.4]} 4... Bg7 {[%clk 0:03:04.9]} 5. e4 {[%clk 0:03:03]} 5... Nc6
{[%clk 0:03:05.6]} 6. Nge2 {[%clk 0:03:04]} 6... h5 {[%clk 0:03:03.6]} 7. h3
{[%clk 0:03:03.2]} 7... h4 {[%clk 0:03:03.5]} 8. g4 {[%clk 0:03:04.4]} 8... g5
{[%clk 0:03:00.4]} 9. d3 {[%clk 0:03:01.4]} 9... Nd4 {[%clk 0:02:59.1]} 10. Nxd4
{[%clk 0:02:45.3]} 10... exd4 {[%clk 0:03:01]} 11. Ne2 {[%clk 0:02:46.7]} 11...
Be6 {[%clk 0:02:57.9]} 12. f4 {[%clk 0:02:44.3]} 12... gxf4 {[%clk 0:02:59]} 13.
Nxf4 {[%clk 0:02:44.2]} 13... Be5 {[%clk 0:02:59]} 14. O-O {[%clk 0:02:39.8]}
14... Ne7 {[%clk 0:03:00.2]} 15. Nxe6 {[%clk 0:02:15.1]} 15... fxe6 {[%clk
0:03:02.1]} 16. Bg5 {[%clk 0:02:16.3]} 16... Qd7 {[%clk 0:03:00.9]} 17. Qd2
{[%clk 0:02:15.5]} 17... Ng6 {[%clk 0:02:37.4]} 18. Rf3 {[%clk 0:02:08.2]} 18...
Bg7 {[%clk 0:02:30.7]} 19. Raf1 {[%clk 0:02:07.8]} 19... Ne5 {[%clk 0:02:31.9]}
20. R3f2 {[%clk 0:01:58.3]} 20... Rh7 {[%clk 0:02:07.6]} 21. b4 {[%clk
0:01:48.5]} 21... Ng6 {[%clk 0:01:54.8]} 22. e5 {[%clk 0:01:40.7]} 22... Bxe5
{[%clk 0:01:47.4]} 23. Bxb7 {[%clk 0:01:39.2]} 23... Rb8 {[%clk 0:01:44.2]} 24.
Be4 {[%clk 0:01:40.4]} 24... Rg7 {[%clk 0:01:24]} 25. Bxg6+ {[%clk 0:01:40]} 1-0